bitfinex-derivatives/quotes_SOLF0:USTF0_20241026
["timestamp","ask_amount","ask_price","bid_price","bid_amount"]
[1729934276561,4.26,168.71,168.65,8.21878805]
[1729934276762,12.47878805,168.71,168.65,8.21878805]
[1729934277363,2.9672,168.69,168.65,8.21878805]
[1729934277667,11.18598805,168.69,168.63,8.21878805]
[1729934278462,11.18618805,168.68,168.62,1.2811]
[1729934278661,2.9674,168.68,168.62,1.2811]
[1729934278870,4.26,168.71,168.62,1.2811]
[1729934279071,8.21878805,168.66,168.62,1.2811]
[1729934279468,8.21878805,168.66,168.6,4.26]
[1729934279667,8.21878805,168.66,168.6,12.47878805]
[1729934280669,2.9674,168.67,168.61,2.9684]
[1729934280874,8.21878805,168.67,168.6,4.26]
[1729934281075,1.2391,168.7,168.6,8.21878805]
[1729934281274,8.21878805,168.65,168.6,8.21878805]
[1729934281464,2.5324,168.69,168.6,8.21878805]
[1729934281668,8.21878805,168.65,168.6,8.21878805]
[1729934282175,8.21878805,168.65,168.59,7.2288]
[1729934282370,8.21878805,168.63,168.58,4.26]
[1729934282565,8.21878805,168.62,168.57,8.21878805]
[1729934283872,4.26,168.67,168.57,8.21878805]
[1729934284073,8.21878805,168.62,168.57,8.21878805]
[1729934284275,11.18718805,168.62,168.57,8.21878805]
[1729934287771,2.9684,168.62,168.6,8.21878805]
[1729934287978,2.9681,168.63,168.6,8.21878805]
[1729934288381,8.21878805,168.66,168.6,8.21878805]
[1729934288979,2.9678,168.65,168.6,8.21878805]
[1729934290176,2.9675,168.67,168.63,8.21878805]
[1729934290375,12.45878805,168.68,168.63,8.21878805]
[1729934290982,4.24,168.68,168.63,8.21878805]
[1729934291176,12.45878805,168.68,168.63,8.21878805]
[1729934291379,15.42618805,168.68,168.63,8.21878805]
[1729934292787,4.24,168.68,168.64,8.21878805]
[1729934293188,8.21878805,168.69,168.64,8.21878805]
[1729934295981,8.21878805,168.67,168.62,8.21878805]
[1729934297284,2.9674,168.68,168.62,8.21878805]
[1729934297480,8.21878805,168.67,168.62,8.21878805]
[1729934298481,11.18638805,168.67,168.62,8.21878805]
[1729934299787,8.21878805,168.67,168.62,8.21878805]
[1729934304492,11.18628805,168.67,168.62,8.21878805]
[1729934304885,8.21878805,168.67,168.62,8.21878805]
[1729934305082,8.21878805,168.67,168.61,4.24]
[1729934305388,2.9676,168.66,168.61,4.24]
[1729934307296,2.9676,168.66,168.62,8.21878805]
[1729934309289,8.21878805,168.69,168.63,2.968]
[1729934309596,8.21878805,168.69,168.63,8.21878805]
[1729934310395,2.9674,168.68,168.63,8.21878805]
[1729934313492,2.9667,168.72,168.65,8.21878805]
[1729934313793,8.21878805,168.7,168.65,8.21878805]
[1729934313995,6.6651,168.8,168.64,2.4131]
[1729934314203,8.21878805,168.73,168.67,8.21878805]
[1729934314592,8.21878805,168.71,168.64,2.4131]
[1729934314793,8.21878805,168.7,168.66,4.24]
[1729934315900,8.21878805,168.69,168.64,14.87188805]
[1729934316095,2.5483,168.74,168.64,4.24]
[1729934316394,8.21878805,168.68,168.62,11.18708805]
[1729934316594,2.9671,168.7,168.62,15.42708805]
[1729934316797,8.21878805,168.68,168.62,15.42708805]
[1729934317399,8.21878805,168.68,168.62,12.45878805]
[1729934317598,4.24,168.71,168.6,5.526]
[1729934317800,8.21878805,168.65,168.6,5.526]
[1729934318399,11.18638805,168.67,168.61,8.21878805]
[1729934318603,4.24,168.71,168.61,8.21878805]
[1729934318903,8.21878805,168.66,168.61,8.21878805]
[1729934319193,4.24,168.71,168.61,8.21878805]
[1729934319399,8.21878805,168.66,168.61,8.21878805]
[1729934320598,2.9675,168.67,168.6,5.526]
[1729934320804,8.21878805,168.65,168.6,5.526]
[1729934322399,11.18668805,168.65,168.59,8.21878805]
[1729934322604,2.5483,168.74,168.59,4.38]
[1729934322605,4.38,168.67,168.59,4.38]
[1729934322800,8.21878805,168.63,168.59,4.38]
[1729934323500,4.38,168.67,168.58,8.21878805]
[1729934323699,4.38,168.67,168.56,1.221]
[1729934323700,3.9186,168.66,168.57,137.21499044]
[1729934324004,8.21878805,168.62,168.57,137.21499044]
[1729934324503,8.21878805,168.62,168.56,9.43978805]
[1729934324504,8.21878805,168.62,168.58,8.21878805]
[1729934325301,11.18708805,168.62,168.58,8.21878805]
[1729934325805,8.21878805,168.62,168.58,8.21878805]
[1729934326803,2.9681,168.63,168.58,8.21878805]
[1729934328601,2.9685,168.62,168.58,8.21878805]
[1729934328802,12.13738805,168.66,168.59,8.21878805]
[1729934329507,12.13738805,168.66,168.61,8.21878805]
[1729934329696,2.5925,168.66,168.62,8.21878805]
[1729934329897,4.38,168.66,168.62,8.21878805]
[1729934331300,2.9678,168.65,168.62,8.21878805]
[1729934331501,4.38,168.66,168.62,8.21878805]
[1729934332307,7.3476,168.66,168.62,8.21878805]
[1729934333709,4.38,168.69,168.65,8.21878805]
[1729934334006,2.9668,168.71,168.66,8.21878805]
[1729934334007,12.59878805,168.71,168.66,8.21878805]
[1729934334204,2.967,168.7,168.66,8.21878805]
[1729934336402,4.38,168.71,168.66,8.21878805]
[1729934336815,12.59878805,168.71,168.66,8.21878805]
[1729934337613,2.9669,168.7,168.66,8.21878805]
[1729934339111,4.38,168.71,168.66,8.21878805]
[1729934339925,4.38,168.71,168.63,4.38]
[1729934339926,4.38,168.71,168.68,8.21878805]
[1729934340831,11.18538805,168.72,168.68,8.21878805]
[1729934343430,2.9669,168.7,168.63,7.3481]
[1729934343634,2.9669,168.7,168.66,8.21878805]
[1729934344237,8.21878805,168.71,168.65,8.21878805]
[1729934344534,8.21878805,168.67,168.62,8.21878805]
[1729934345734,8.21878805,168.67,168.58,2.969]
[1729934345735,8.21878805,168.64,168.58,12.59878805]
[1729934346032,2.9682,168.63,168.58,12.59878805]
[1729934346235,8.21878805,168.63,168.58,4.38]
[1729934346436,8.21878805,168.62,168.56,8.21878805]
[1729934346827,2.9685,168.61,168.56,8.21878805]
[1729934347028,2.5091,168.65,168.58,8.21878805]
[1729934347231,8.21878805,168.64,168.59,8.21878805]
[1729934347534,11.18678805,168.64,168.59,8.21878805]
[1729934348737,2.968,168.64,168.59,8.21878805]
[1729934349138,2.968,168.64,168.6,8.21878805]
[1729934350736,2.9674,168.67,168.63,8.21878805]
[1729934353035,2.9674,168.67,168.65,8.21878805]
[1729934356129,2.9674,168.67,168.6,2.9687]
[1729934356335,8.21878805,168.65,168.57,4.38]
[1729934356539,8.21878805,168.65,168.6,8.21878805]
[1729934356936,2.9676,168.66,168.61,8.21878805]
[1729934359036,18.08838805,168.68,168.63,8.21878805]
[1729934361340,4.38,168.69,168.61,7.3485]
[1729934361539,8.21878805,168.7,168.64,8.21878805]
[1729934361540,8.21878805,168.68,168.64,8.21878805]
[1729934362643,11.18608805,168.68,168.64,8.21878805]
[1729934366143,2.9673,168.68,168.64,8.21878805]
[1729934366540,15.56588805,168.7,168.65,8.21878805]
[1729934368445,11.18588805,168.7,168.65,8.21878805]
[1729934368650,2.9667,168.71,168.66,8.21878805]
[1729934369544,4.38,168.72,168.66,8.21878805]
[1729934369740,2.9669,168.7,168.66,8.21878805]
[1729934369946,4.38,168.72,168.66,8.21878805]
[1729934370150,12.59878805,168.72,168.66,8.21878805]
[1729934370551,2.9669,168.71,168.66,8.21878805]
[1729934372257,2.9669,168.71,168.6,2.499]
[1729934372258,1.2417,168.75,168.7,8.21878805]
[1729934372450,4.38,168.76,168.67,4.38]
[1729934372656,4.38,168.76,168.72,8.21878805]
[1729934372848,1.2821,168.79,168.74,8.21878805]
[1729934373357,4.38,168.79,168.76,8.21878805]
[1729934373553,8.21878805,168.82,168.76,8.21878805]
[1729934373759,7.3448,168.82,168.76,8.21878805]
[1729934373950,7.3448,168.82,168.78,8.21878805]
[1729934374654,2.9648,168.82,168.78,8.21878805]
[1729934375059,2.9648,168.82,168.73,4.2415]
[1729934375355,2.9648,168.82,168.77,8.21878805]
[1729934375948,2.9648,168.82,168.79,8.21878805]
[1729934376154,5.5772,168.83,168.8,8.21878805]
[1729934376155,8.5418,168.83,168.8,8.21878805]
[1729934376356,121.2532906,168.84,168.8,8.21878805]
[1729934376551,125.6332906,168.84,168.8,8.21878805]
[1729934377351,2.9646,168.83,168.8,8.21878805]
[1729934377550,125.6332906,168.84,168.78,8.21878805]
[1729934377749,135.08247865,168.84,168.74,1.2749]
[1729934377959,135.08247865,168.84,168.77,8.21878805]
[1729934378650,8.21878805,168.81,168.76,8.21878805]
[1729934378955,12.59878805,168.81,168.76,8.21878805]
[1729934379156,8.21878805,168.79,168.68,5.96437882]
[1729934379460,4.38,168.81,168.72,8.21878805]
[1729934379461,8.21878805,168.78,168.72,8.21878805]
[1729934379652,4.38,168.77,168.72,8.21878805]
[1729934381259,2.9659,168.76,168.72,8.21878805]
[1729934381653,2.9659,168.76,168.68,8.6221]
[1729934381654,4.38,168.77,168.74,8.21878805]
[1729934381951,4.38,168.77,168.76,8.21878805]
[1729934382855,2.9655,168.78,168.76,8.21878805]
[1729934383165,1.2737,168.83,168.76,8.21878805]
[1729934383454,1.2737,168.83,168.8,8.21878805]
[1729934383455,2.965,168.81,168.8,8.21878805]
[1729934383967,4.36,168.82,168.8,8.21878805]
[1729934384658,1.2737,168.83,168.8,8.21878805]
[1729934384861,5.6636,168.85,168.82,8.21878805]
[1729934385154,2.9645,168.84,168.82,8.21878805]
[1729934385856,8.6279,168.85,168.82,8.21878805]
[1729934386261,8.6279,168.85,168.8,12.81343526]
[1729934386554,2.9645,168.84,168.8,12.81343526]
[1729934386957,5.6636,168.85,168.8,12.81343526]
[1729934387154,14.02633526,168.91,168.8,12.81343526]
[1729934387155,7.3245,168.84,168.8,12.81343526]
[1729934387764,4.36,168.84,168.8,12.81343526]
[1729934388559,1.2684,168.9,168.8,12.81343526]
[1729934388756,2.9638,168.88,168.8,12.81343526]
[1729934388961,2.9638,168.88,168.83,12.81343526]
[1729934389157,14.02633526,168.91,168.83,12.81343526]
[1729934389158,1.2129,168.91,168.83,12.81343526]
[1729934389357,7.3234,168.9,168.85,12.81343526]
[1729934390659,4.36,168.9,168.85,12.81343526]
[1729934391351,7.3234,168.9,168.85,12.81343526]
[1729934391754,2.9634,168.9,168.85,12.81343526]
[1729934392150,5.5729,168.91,168.85,12.81343526]
[1729934392356,7.3232,168.91,168.85,12.81343526]
[1729934392657,4.36,168.91,168.87,12.81343526]
[1729934392957,4.36,168.91,168.81,1.3025]
[1729934392958,4.36,168.91,168.89,12.81343526]
[1729934393158,7.3228,168.94,168.89,12.81343526]
[1729934396754,2.9628,168.94,168.89,12.81343526]
[1729934396959,2.5023,169.01,168.85,2.9643]
[1729934396960,4.36,168.96,168.91,12.81343526]
[1729934397860,4.36,168.99,168.93,12.81343526]
[1729934398061,2.5023,169.01,168.93,12.81343526]
[1729934398264,4.36,169.0,168.93,12.81343526]
[1729934398965,2.9621,168.98,168.93,12.81343526]
[1729934399159,4.36,169.0,168.93,12.81343526]
[1729934399356,2.9621,168.98,168.93,12.81343526]
[1729934400161,4.36,169.0,168.93,12.81343526]
[1729934400366,2.9624,168.96,168.93,12.81343526]
[1729934400570,4.36,169.0,168.93,12.81343526]
[1729934400765,2.962,168.98,168.93,12.81343526]
[1729934402366,4.36,169.0,168.93,12.81343526]
[1729934402565,2.9622,168.97,168.93,12.81343526]
[1729934402762,4.36,169.03,168.95,12.81343526]
[1729934403364,7.3213,169.02,168.95,12.81343526]
[1729934404873,2.9615,169.01,168.95,12.81343526]
[1729934407071,4.36,169.02,168.95,12.81343526]
[1729934407571,4.36,169.02,168.97,12.81343526]
[1729934407773,7.3214,169.02,168.97,12.81343526]
[1729934408871,4.36,169.02,168.97,12.81343526]
[1729934411672,7.3413,169.03,168.97,12.81343526]
[1729934412274,4.38,169.03,168.97,12.81343526]
[1729934413074,4.38,169.05,168.97,12.81343526]
[1729934413277,4.38,169.05,168.97,15.77553526]
[1729934413582,2.5423,169.09,168.97,15.77553526]
[1729934413780,2.5423,169.09,169.0,12.81343526]
[1729934413781,4.38,169.06,169.0,12.81343526]
[1729934414174,2.9605,169.07,169.0,12.81343526]
[1729934414370,2.5423,169.09,169.0,12.81343526]
[1729934414672,2.9606,169.07,169.0,12.81343526]
[1729934414978,4.38,169.08,169.0,12.81343526]
[1729934415179,12.81343526,169.07,168.97,12.81343526]
[1729934415382,2.9609,169.04,168.97,12.81343526]
[1729934415579,12.81343526,169.07,168.97,12.81343526]
[1729934416376,8.19315087,169.05,169.0,8.19315087]
[1729934416585,4.38,169.04,169.0,8.19315087]
[1729934417284,2.9612,169.03,169.0,8.19315087]
[1729934418078,11.15465087,169.01,169.0,55.0]
[1729934420180,2.9615,169.01,169.0,55.0]
[1729934420973,15.76897527,169.01,169.0,53.0134]
[1729934421573,15.76897527,169.01,169.0,51.0268]
[1729934421882,2.9626,168.95,168.89,15.34537527]
[1729934422188,7.3426,168.95,168.89,15.34537527]
[1729934422678,2.963,168.93,168.89,1.2847]
[1729934422879,4.38,168.95,168.85,1.2524]
[1729934423773,2.963,168.92,168.85,1.2524]
[1729934423980,4.38,168.91,168.85,1.2524]
[1729934424575,17.18747527,168.91,168.84,1.202]
[1729934424788,17.18747527,168.91,168.8,1.2754]
[1729934425084,17.18747527,168.91,168.8,14.08287527]
[1729934425582,2.964,168.87,168.8,14.08287527]
[1729934425785,4.38,168.86,168.8,14.08287527]
[1729934429681,4.38,168.86,168.81,2.9649]
[1729934436985,7.3437,168.88,168.82,2.9648]
[1729934438992,4.38,168.88,168.82,2.9648]
[1729934439589,2.964,168.87,168.8,17.04787527]
[1729934441595,2.9648,168.82,168.69,57.58]
[1729934441891,2.9648,168.82,168.74,12.80747527]
[1729934442087,2.9648,168.82,168.75,2.9659]
[1729934442290,11.17003134,168.82,168.77,8.20523134]
[1729934442488,2.9648,168.82,168.78,8.20523134]
[1729934442689,1.2374,168.88,168.8,8.20523134]
[1729934442884,8.20523134,168.86,168.8,8.20523134]
[1729934444394,2.9643,168.85,168.8,8.20523134]
[1729934444596,8.20523134,168.86,168.8,8.20523134]
[1729934445294,8.20523134,168.85,168.8,8.20523134]
[1729934446794,2.9641,168.86,168.8,8.20523134]
[1729934446995,8.20523134,168.85,168.8,8.20523134]
[1729934447497,8.20523134,168.85,168.79,11.17053134]
[1729934447689,8.20523134,168.84,168.79,11.17053134]
[1729934448896,7.3239,168.87,168.82,8.20523134]
[1729934449085,4.36,168.87,168.83,8.20523134]
[1729934449486,1.1958,168.93,168.85,8.20523134]
[1729934449487,4.36,168.9,168.85,8.20523134]
[1729934449689,12.56523134,168.9,168.85,8.20523134]
[1729934451091,4.36,168.9,168.85,8.20523134]
[1729934451292,8.20523134,168.9,168.85,8.20523134]
[1729934451591,12.56523134,168.9,168.85,8.20523134]
[1729934452293,8.20523134,168.89,168.85,8.20523134]
[1729934455500,8.20523134,168.88,168.79,3.811]
[1729934455694,4.36,168.9,168.82,8.20523134]
[1729934455899,8.20523134,168.87,168.82,8.20523134]
[1729934456288,11.16933134,168.87,168.82,8.20523134]
[1729934456493,8.20523134,168.87,168.82,8.20523134]
[1729934456693,8.20523134,168.85,168.79,3.811]
[1729934456898,4.36,168.85,168.77,8.20523134]
[1729934457098,8.20523134,168.82,168.77,8.20523134]
[1729934458296,11.17013134,168.82,168.77,8.20523134]
[1729934458796,2.9646,168.83,168.78,8.20523134]
[1729934459602,4.36,168.85,168.78,8.20523134]
[1729934459801,11.16973134,168.84,168.78,8.20523134]
[1729934460499,11.16973134,168.84,168.74,4.36]
[1729934460500,2.9643,168.86,168.8,8.20523134]
[1729934460806,4.36,168.86,168.83,8.20523134]
[1729934461401,7.3242,168.86,168.8,1.2362]
[1729934461701,8.20523134,168.85,168.79,9.46313134]
[1729934462200,4.36,168.86,168.81,8.20523134]
[1729934462395,4.36,168.87,168.83,8.20523134]
[1729934463209,12.56523134,168.87,168.81,8.20523134]
[1729934463398,8.20523134,168.85,168.79,8.20523134]
[1729934463898,11.16953134,168.85,168.79,8.20523134]
[1729934464099,11.16953134,168.85,168.8,8.20523134]
[1729934464902,4.36,168.87,168.83,8.20523134]
[1729934469906,8.20523134,168.84,168.74,5.11019445]
[1729934470111,4.36,168.87,168.78,8.20523134]
[1729934470409,8.20523134,168.83,168.78,8.20523134]
[1729934471307,8.20523134,168.79,168.71,5.11319532]
[1729934471509,8.20523134,168.75,168.7,9.52093134]
[1729934472413,8.20523134,168.75,168.7,8.20523134]
[1729934472609,8.20523134,168.75,168.68,6.9344]
[1729934472811,8.20523134,168.74,168.68,2.4944]
[1729934473117,8.20523134,168.74,168.68,10.69963134]
[1729934473317,2.9664,168.73,168.68,10.69963134]
[1729934473713,8.20523134,168.72,168.68,10.69963134]
[1729934474110,8.20523134,168.72,168.67,125.69901516]
[1729934474310,4.44,168.75,168.67,125.69901516]
[1729934474311,12.82261792,168.73,168.67,125.69901516]
[1729934474814,2.9667,168.71,168.67,125.69901516]
[1729934475116,12.82261792,168.73,168.67,125.69901516]
[1729934476014,2.9666,168.72,168.67,125.69901516]
[1729934476217,4.44,168.71,168.62,2.9683]
[1729934476514,17.26261792,168.71,168.62,2.9683]
[1729934477218,17.26261792,168.71,168.61,2.543]
[1729934478316,2.9672,168.69,168.61,5.5115]
[1729934480614,2.9667,168.72,168.64,2.9679]
[1729934480822,4.46,168.71,168.64,2.9679]
[1729934481716,20.24931792,168.71,168.63,2.9681]
[1729934482220,17.28261792,168.71,168.62,12.82261792]
[1729934482619,1.2506,168.74,168.66,12.82261792]
[1729934482826,1.3132,168.76,168.62,4.46]
[1729934482827,4.46,168.75,168.68,12.82261792]
[1729934483018,4.46,168.75,168.7,2.9669]
[1729934483213,4.46,168.75,168.67,12.82261792]
[1729934484324,4.46,168.75,168.69,12.82261792]
[1729934485217,4.46,168.78,168.69,12.82261792]
[1729934485625,4.46,168.78,168.7,1.2336]
[1729934486023,4.46,168.78,168.71,2.9667]
[1729934486826,2.9657,168.77,168.7,1.2336]
[1729934492932,2.9657,168.77,168.7,4.2005]
[1729934493131,4.46,168.78,168.7,1.2336]
[1729934494231,4.46,168.78,168.72,2.9665]
[1729934494232,7.4255,168.78,168.72,2.9665]
[1729934495426,4.46,168.78,168.72,2.9665]
[1729934495834,4.46,168.77,168.7,1.2336]
[1729934496028,4.46,168.77,168.72,2.9664]
[1729934500237,12.66898519,168.77,168.72,11.17538519]
[1729934500531,12.66898519,168.77,168.72,8.20898519]
[1729934501833,8.20898519,168.76,168.71,8.20898519]
[1729934505334,11.17508519,168.75,168.69,11.17598519]
[1729934505533,11.17508519,168.75,168.69,8.20898519]
[1729934505942,2.9663,168.74,168.69,8.20898519]
[1729934506247,8.20898519,168.75,168.69,8.20898519]
[1729934506437,8.20898519,168.75,168.67,2.9674]
[1729934506638,8.20898519,168.73,168.69,8.20898519]
[1729934506839,12.66898519,168.73,168.69,8.20898519]
[1729934508636,1.3215,168.82,168.72,8.20898519]
[1729934508847,1.3215,168.82,168.68,4.46]
[1729934508848,4.46,168.8,168.75,8.20898519]
[1729934509542,2.965,168.82,168.77,8.20898519]
[1729934509743,12.66898519,168.84,168.78,8.20898519]
[1729934510342,4.46,168.84,168.77,2.9656]
[1729934510646,4.46,168.83,168.77,2.9656]
[1729934511443,2.9643,168.85,168.77,2.9656]
[1729934511742,4.46,168.84,168.77,2.9656]
[1729934511944,4.46,168.84,168.77,4.2109]
[1729934513052,4.46,168.84,168.77,5.496]
[1729934513546,4.46,168.84,168.78,2.9654]
[1729934513849,2.9636,168.89,168.81,12.81575562]
[1729934514050,7.4236,168.89,168.81,12.81575562]
[1729934514448,7.4236,168.89,168.81,15.78055562]
[1729934518048,2.9636,168.89,168.81,12.81575562]
[1729934518242,4.46,168.88,168.81,12.81575562]
[1729934518440,2.4701,168.93,168.84,2.9643]
[1729934518441,15.28585562,168.93,168.84,2.9643]
[1729934518642,4.46,168.92,168.84,2.9643]
[1729934519347,7.4232,168.91,168.84,2.9643]
[1729934520045,7.4232,168.91,168.81,12.81575562]
[1729934520046,12.81575562,168.93,168.8,4.46]
[1729934520251,15.77845562,168.94,168.86,2.964]
[1729934520647,15.77865562,168.93,168.84,5.4823]
[1729934520858,12.81575562,168.9,168.84,1.2195]
[1729934521357,12.81575562,168.93,168.84,1.2195]
[1729934521655,4.46,168.92,168.84,1.2195]
[1729934523053,4.46,168.92,168.86,2.964]
[1729934523260,4.46,168.92,168.84,1.2195]
[1729934523557,7.4231,168.92,168.84,4.1838]
[1729934523755,7.4231,168.92,168.84,1.2195]
[1729934524955,12.81575562,168.91,168.84,1.2195]
[1729934525258,12.81575562,168.91,168.85,2.9642]
[1729934528354,15.77935562,168.89,168.83,4.46]
[1729934528555,12.81575562,168.87,168.8,4.46]
[1729934529661,12.81575562,168.88,168.8,4.46]
[1729934530062,12.81575562,168.88,168.82,2.9646]
[1729934530660,12.81575562,168.88,168.83,2.9646]
[1729934531454,2.9636,168.89,168.84,2.9644]
[1729934531658,12.81575562,168.9,168.84,2.9644]
[1729934531861,15.77915562,168.9,168.84,2.9644]
[1729934532258,2.9634,168.9,168.84,2.9644]
[1729934532471,15.77915562,168.9,168.84,2.9644]
[1729934536272,8.19890919,168.88,168.84,2.9644]
[1729934538261,4.44,168.88,168.79,2.543]
[1729934538466,4.44,168.88,168.79,1.2445]
[1729934538778,8.19890919,168.84,168.79,9.44340919]
[1729934538961,12.63890919,168.84,168.79,9.44340919]
[1729934539160,12.63890919,168.84,168.8,2.9651]
[1729934540160,4.44,168.84,168.8,11.16400919]
[1729934540365,11.16320919,168.85,168.8,11.16400919]
[1729934540559,1.253,168.96,168.79,1.2445]
[1729934540766,11.16300919,168.86,168.79,1.2445]
[1729934540971,11.16300919,168.86,168.8,8.19890919]
[1729934541170,2.9641,168.86,168.8,8.19890919]
[1729934541473,2.9645,168.84,168.79,1.2445]
[1729934541784,4.44,168.83,168.76,9.50410919]
[1729934541973,8.19890919,168.81,168.78,2.9655]
[1729934542177,8.19890919,168.79,168.76,1.3052]
[1729934542775,8.19890919,168.79,168.75,2.966]
[1729934543376,12.63890919,168.79,168.75,2.966]
[1729934543672,8.19890919,168.78,168.75,2.966]
[1729934545377,4.44,168.79,168.75,2.966]
[1729934546168,4.44,168.8,168.78,2.9654]
[1729934546577,8.19890919,168.83,168.78,2.9654]
[1729934546784,4.44,168.82,168.78,2.9654]
[1729934547980,4.44,168.82,168.78,11.16430919]
[1729934548681,4.44,168.82,168.78,2.9654]
[1729934549083,12.63890919,168.82,168.77,2.9657]
[1729934550082,8.19890919,168.8,168.75,2.9659]
[1729934550275,8.19890919,168.78,168.75,2.9659]
[1729934550476,12.63890919,168.78,168.72,9.45180919]
[1729934551380,12.63890919,168.78,168.74,2.9662]
[1729934551685,12.63890919,168.78,168.72,9.45180919]
[1729934551883,8.19890919,168.76,168.72,4.2194]
[1729934552381,7.4055,168.78,168.73,2.9664]
[1729934552579,12.82715444,168.77,168.66,4.44]
[1729934552780,12.82715444,168.77,168.67,12.82715444]
[1729934552981,2.9659,168.76,168.7,2.9669]
[1729934553586,5.6547,168.78,168.67,12.82715444]
[1729934553783,8.6204,168.78,168.72,2.9665]
[1729934555982,1.2147,168.78,168.75,2.966]
[1729934556177,4.44,168.78,168.75,2.966]
[1729934556378,12.82715444,168.81,168.72,12.82715444]
[1729934556583,4.44,168.8,168.72,12.82715444]
[1729934556791,4.44,168.79,168.72,12.82715444]
[1729934557483,4.44,168.79,168.74,2.9662]
[1729934558883,4.44,168.79,168.72,12.82715444]
[1729934559691,4.44,168.79,168.76,2.9657]
[1729934559887,4.44,168.79,168.72,12.82715444]
[1729934560088,4.44,168.79,168.74,2.966]
[1729934565501,4.44,168.79,168.75,2.9659]
[1729934566787,14.16001924,168.96,168.7,4.44]
[1729934566788,70.44715444,168.86,168.78,2.9653]
[1729934566992,4.44,168.85,168.78,2.9653]
[1729934567293,126.28050512,168.94,168.83,12.82715444]
[1729934567483,2.89367492,168.97,168.85,12.82715444]
[1729934567484,1.2234,168.93,168.85,12.82715444]
[1729934567684,4.44,168.92,168.85,12.82715444]
[1729934568692,4.44,168.92,168.86,2.9641]
[1729934569397,4.44,168.92,168.87,2.9638]
[1729934570603,1.2234,168.93,168.87,2.9638]
[1729934570899,4.44,168.92,168.87,2.9638]
[1729934576300,8.19568737,168.91,168.87,2.9638]
[1729934577097,1.2234,168.93,168.87,2.9638]
[1729934577306,8.19568737,168.91,168.87,2.9638]
[1729934579206,8.19568737,168.91,168.86,2.964]
[1729934580003,8.19568737,168.88,168.79,3.8314]
[1729934580209,8.19568737,168.87,168.82,2.9646]
[1729934581306,8.19568737,168.87,168.83,2.9646]
[1729934583608,7.4037,168.88,168.83,2.9646]
[1729934583807,11.15938737,168.88,168.83,2.9646]
[1729934584207,11.15938737,168.88,168.83,11.16028737]
[1729934586911,4.44,168.9,168.83,8.19568737]
[1729934587112,7.4034,168.9,168.86,2.9641]
[1729934587312,15.59908737,168.9,168.86,2.9641]
[1729934587705,12.63568737,168.9,168.86,2.9641]
[1729934588606,1.2234,168.93,168.86,8.19568737]
[1729934588807,8.19568737,168.91,168.87,2.9637]
[1729934589116,8.19568737,168.91,168.86,8.19568737]
[1729934589315,1.2234,168.93,168.87,8.19568737]
[1729934589510,4.44,168.94,168.89,8.19568737]
[1729934590109,12.63568737,168.94,168.89,8.19568737]
[1729934590915,8.19568737,168.93,168.9,2.9634]
[1729934591115,241.39001914,169.12,168.92,8.19568737]
[1729934591312,1.2528,169.04,168.98,2.962]
[1729934591513,8.19568737,169.01,168.96,8.19568737]
[1729934592210,8.19568737,169.01,168.97,2.9621]
[1729934592414,2.961,169.04,168.97,2.9621]
[1729934592718,8.19568737,169.02,168.97,2.9621]
[1729934593920,8.19568737,169.02,168.96,11.15788737]
[1729934594319,2.9612,169.03,168.96,2.9622]
[1729934597417,2.9612,169.03,168.95,4.44]
[1729934597612,2.9612,169.03,168.97,2.9621]
[1729934598417,2.9609,169.04,168.97,2.9621]
[1729934598626,12.80665159,169.06,168.95,17.24665159]
[1729934598928,12.80665159,169.06,168.98,2.9618]
[1729934599225,2.9606,169.06,168.97,12.80665159]
[1729934600328,2.9606,169.06,168.99,2.9617]
[1729934600827,21.40965159,169.08,169.01,2.9613]
[1729934601424,18.44935159,169.08,168.99,4.44]
[1729934601626,2.9605,169.07,168.99,4.44]
[1729934603338,15.76715159,169.07,169.0,2.9616]
[1729934604235,2.9607,169.06,168.99,2.9617]
[1729934604437,12.80665159,169.07,168.99,2.9617]
[1729934605239,2.9608,169.05,168.99,2.9617]
[1729934607848,12.80665159,169.07,169.0,2.9616]